fUST/lending_fUST_20251008
["ID","MTS","AMOUNT","RATE_DAILY","PERIOD"]
[389982515,1759918252898,-500.0,0.00021643,2]
[389982517,1759918252907,-500.0,0.00021643,2]
[389982518,1759918252916,-500.0,0.00021643,2]
[389982521,1759918252926,-500.0,0.00021643,2]
[389982522,1759918252935,-500.0,0.00021643,2]
[389982524,1759918252945,-500.0,0.00021643,2]
[389982526,1759918252954,-500.0,0.00021643,2]
[389982528,1759918252963,-1331.83,0.00021643,2]
[389982530,1759918252972,-3233.57,0.00021643,2]
[389982532,1759918252981,-500.0,0.00021643,2]
[389982534,1759918252990,-165.045452,0.00021643,7]
[389982536,1759918252999,-500.0,0.00021643,2]
[389982538,1759918253009,-500.0,0.00021643,2]
[389982540,1759918253018,-547.82,0.00021643,2]
[389982542,1759918253028,-5306.6,0.00021643,2]
[389982544,1759918253037,-1393.28,0.00021643,2]
[389982546,1759918253046,-500.0,0.00021643,2]
[389982548,1759918253057,-1519.0,0.00021643,2]
[389982550,1759918253066,-2309.68,0.00021643,2]
[389982553,1759918253080,-9692.4,0.00021643,2]
[389982554,1759918253090,-500.0,0.00021643,2]
[389982556,1759918253101,-502.51042708,0.00021643,2]
[389982558,1759918253111,-810.9,0.00021643,2]
[389982560,1759918253122,-500.0,0.00021643,2]
[389982562,1759918253133,-500.0,0.00021643,2]
[389982564,1759918253143,-879.0,0.00021643,2]
[389982566,1759918253154,-4446.16,0.00021643,2]
[389982568,1759918253164,-619.3,0.00021643,2]
[389982570,1759918253174,-2013.43,0.00021643,2]
[389982572,1759918253183,-500.0,0.00021643,2]
[389982574,1759918253194,-2218.86,0.00021643,2]
[389982576,1759918253204,-500.0,0.00021643,2]
[389982578,1759918253213,-151.0,0.00021643,7]
[389982580,1759918253222,-285.064943,0.00021643,7]
[389982582,1759918253231,-10120.49,0.00021643,2]
[389982584,1759918253240,-2696.36,0.00021643,2]
[389982586,1759918253249,-500.0,0.00021643,2]
[389982588,1759918253259,-500.0,0.00021643,2]
[389982590,1759918253268,-1589.25,0.00021643,2]
[389982592,1759918253277,-1698.05,0.00021643,2]
[389982594,1759918253286,-3669.66,0.00021643,2]
[389982595,1759918253295,-1372.73,0.00021643,2]
[389982597,1759918253308,-795.7,0.00021643,2]
[389982599,1759918253318,-151.0,0.00021643,7]
[389982601,1759918253327,-151.0,0.00021643,7]
[389982604,1759918253340,-3538.17,0.00021643,2]
[389982605,1759918253353,-536.898115,0.00021643,7]
[389982607,1759918253363,-151.0,0.00021643,7]
[389982609,1759918253373,-592.79,0.00021643,2]
[389982611,1759918253383,-3942.68,0.00021643,2]
[389982612,1759918253393,-570.95,0.00021643,2]
[389982614,1759918253403,-536.898115,0.00021643,7]
[389982617,1759918253414,-500.0,0.00021643,2]
[389982619,1759918253423,-536.898115,0.00021643,7]
[389982621,1759918253432,-500.0,0.00021643,2]
[389982623,1759918253442,-536.89811,0.00021643,7]
[389982624,1759918253451,-500.0,0.00021643,2]
[389982627,1759918253461,-500.0,0.00021643,2]
[389982628,1759918253471,-3222.78,0.00021643,2]
[389982630,1759918253480,-500.0,0.00021643,2]
[389982632,1759918253489,-659.24,0.00021643,2]
[389982634,1759918253499,-500.0,0.00021643,2]
[389982636,1759918253508,-2745.86,0.00021643,2]
[389982638,1759918253518,-25168.35,0.00021643,2]
[389982640,1759918253527,-3958.43,0.00021643,2]
[389982642,1759918253537,-500.0,0.00021643,2]
[389982644,1759918253547,-546.86618692,0.00021643,2]
[389982646,1759918253558,-984.97,0.00021643,2]
[389982648,1759918253568,-815.22,0.00021643,2]
[389982650,1759918253578,-1457.77,0.00021643,2]
[389982652,1759918253589,-3145.76,0.00021643,2]
[389982654,1759918253599,-737.62,0.00021643,2]
[389982656,1759918253609,-350.96403819,0.00021643,2]
[389982658,1759918253619,-6482.53,0.00021643,2]
[389982660,1759918253629,-500.0,0.00021643,2]
[389982662,1759918253639,-455.29936593,0.00021643,2]
[389982664,1759918253648,-500.0,0.00021643,2]
[389982667,1759918253658,-500.0,0.00021643,2]
[389982668,1759918253668,-500.0,0.00021643,2]
[389982670,1759918253677,-11076.45,0.00021643,2]
[389982672,1759918253687,-871.59,0.00021643,2]
[389982674,1759918253697,-1573.86,0.00021643,2]
[389982677,1759918253706,-617.92,0.00021643,2]
[389982678,1759918253716,-514.01,0.00021643,2]
[389982680,1759918253725,-709.32,0.00021643,2]
[389982682,1759918253735,-500.0,0.00021643,2]
[389982684,1759918253745,-3633.81,0.00021643,2]
[389982686,1759918253755,-1548.43,0.00021643,2]
[389982688,1759918253765,-221.897372,0.00021643,7]
[389982690,1759918253774,-221.897372,0.00021643,7]
[389982692,1759918253783,-500.0,0.00021643,2]
[389982694,1759918253793,-221.897372,0.00021643,7]
[389982696,1759918253804,-500.0,0.00021643,2]
[389982698,1759918253814,-665.29,0.00021643,2]
[389982699,1759918253824,-627.54,0.00021643,2]
[389982701,1759918253835,-1494.73,0.00021643,2]
[389982703,1759918253845,-500.0,0.00021643,2]
[389982706,1759918253855,-221.89738,0.00021643,7]
[389982708,1759918253866,-2733.46,0.00021643,2]
[389982709,1759918253875,-2911.53,0.00021643,2]
[389982711,1759918253885,-2924.71,0.00021643,2]
[389982713,1759918253895,-875.48,0.00021643,2]
[389982715,1759918253904,-500.0,0.00021643,2]
[389982717,1759918253913,-500.0,0.00021643,2]
[389982719,1759918253924,-500.0,0.00021643,2]
[389982721,1759918253933,-500.0,0.00021643,2]
[389982723,1759918253942,-14872.76,0.00021643,2]
[389982725,1759918253952,-2444.04,0.00021643,2]
[389982727,1759918253962,-524.0,0.00021643,2]
[389982729,1759918253972,-1424.09,0.00021643,2]
[389982731,1759918253981,-614.56534869,0.00021643,2]
[389982734,1759918253998,-467.42465131,0.00021643,2]
[389982736,1759918254010,-3684.67,0.00021643,2]
[389982738,1759918254020,-8202.08,0.00021643,2]
[389982740,1759918254030,-306.46469162,0.00021643,2]
[389982743,1759918254041,-385.38530838,0.00021643,2]
[389982744,1759918254052,-500.0,0.00021643,2]
[389982747,1759918254061,-242.152717,0.00021643,7]
[389982749,1759918254071,-131.69761962,0.00021643,2]
[389982781,1759918254390,-500.0,0.00021369,2]
[389982783,1759918254400,-500.0,0.00021369,2]
[389982785,1759918254409,-151.0,0.00021369,7]
[389982787,1759918254420,-151.0,0.00021369,7]
[389982789,1759918254430,-499.65855419,0.00021643,2]
[389982791,1759918254439,-242.152717,0.00021643,7]
[389982793,1759918254448,-1260.99,0.00021643,2]
[389982795,1759918254458,-2671.96,0.00021643,2]
[389982797,1759918254467,-1158.63,0.00021643,2]
[389982799,1759918254477,-242.152717,0.00021643,7]
[389982802,1759918254488,-776.46,0.00021643,2]
[389982804,1759918254498,-9210.25,0.00021643,2]
[389982806,1759918254508,-242.152708,0.00021643,7]
[389982808,1759918254517,-2326.57,0.00021643,2]
[389982810,1759918254527,-500.0,0.00021643,2]
[389982812,1759918254537,-1212.86,0.00021643,2]
[389982814,1759918254547,-500.0,0.00021643,2]
[389982816,1759918254556,-300.60461197,0.00021643,2]
[389983495,1759918286827,151.0,0.000181,2]
[389983496,1759918287325,151.0,0.00018132,2]
[389983497,1759918287790,151.0,0.00018164,2]
[389983498,1759918288352,151.0,0.00018196,2]
[389983499,1759918288802,151.0,0.00018229,2]
[389983500,1759918289298,151.0,0.00018261,2]
[389983501,1759918290126,151.0,0.00018293,2]
[389983502,1759918290301,151.0,0.00018325,2]
[389983503,1759918290818,151.0,0.00018358,2]
[389983504,1759918291374,151.0,0.0001839,2]
[389983505,1759918291823,151.0,0.00018422,2]
[389983506,1759918292316,151.0,0.00018454,2]
[389983507,1759918292825,151.0,0.00018487,2]
[389983508,1759918293384,151.0,0.00018519,2]
[389983509,1759918293831,151.0,0.00018551,2]
[389983510,1759918294339,151.0,0.00018583,2]
[389983511,1759918294857,151.0,0.00018616,2]
[389983512,1759918295357,151.0,0.00018648,2]
[389983513,1759918295852,151.0,0.0001868,2]
[389983514,1759918296363,151.0,0.00018712,2]
[389983515,1759918296952,151.0,0.00018745,2]
[389983516,1759918297386,151.0,0.00018777,2]
[389983517,1759918297880,151.0,0.00018809,2]
[389983518,1759918298395,151.0,0.00018841,2]
[389983519,1759918298899,151.0,0.00018874,2]
[389983520,1759918299399,151.0,0.00018906,2]
[389983521,1759918299881,151.0,0.00018938,2]
[389983522,1759918300706,60.74585612,0.0001897,2]
[389983523,1759918313321,-90.25414388,0.0001897,2]
[389983524,1759918523173,9819.50171224,0.00017,2]
[389983525,1759918523195,1551.02828655,0.00017,2]
[389983526,1759918526315,-151.0,0.00019003,2]
[389984450,1759918732202,867.304021,0.00013699,2]
[389984584,1759918872882,193.95155167,0.00028767,120]
[389985158,1759918947085,185.0,0.00022086,120]
[389985159,1759919056261,-151.0,0.00019035,2]
[389985160,1759919056290,-215.62989367,0.00019035,2]
[389985161,1759919073429,-151.0,0.00019067,2]
[389985162,1759919089583,-151.0,0.000191,2]
[389985163,1759919106042,-910.72354179,0.00019439,2]
[389985164,1759919106071,-247.97437773,0.00019635,2]
[389985165,1759919106099,-867.304021,0.00020187,2]
[389985166,1759919106128,-160.0,0.00020187,2]
[389985167,1759919106158,-280.31886178,0.00020235,2]
[389985168,1759919106187,-1404.32810968,0.00020623,2]
[389985169,1759919106215,-963.13912092,0.00020663,7]
[389985170,1759919106244,-32.4339342,0.00020798,2]
[389985171,1759919107758,-267.5660658,0.00020798,2]
[389985172,1759919107787,-1200.0,0.00020798,2]
[389985173,1759919107817,-300.0,0.00020798,2]
[389985174,1759919107847,-500.0,0.00020799,2]
[389985175,1759919107876,-500.0,0.00020799,2]
[389985176,1759919108111,-408.25449209,0.00020799,2]
[389985177,1759919108143,-500.0,0.00020799,2]
[389985178,1759919108174,-500.0,0.00020799,2]
[389985179,1759919108204,-500.0,0.00020799,2]
[389985180,1759919108234,-148.36888422,0.00020799,2]
[389985183,1759919109788,-351.63111578,0.00020799,2]
[389985184,1759919109819,-500.0,0.00020799,2]
[389985185,1759919109849,-249.03645839,0.000208,2]
[389985186,1759919130234,-230.98668058,0.000208,2]
[389985187,1759919132089,-10000.01,0.000208,2]
[389985188,1759919135990,-10000.01,0.000208,2]
[389985189,1759919245132,-213.66287491,0.00020735,2]
[389985190,1759919245152,-312.66334583,0.00020835,2]
[389985191,1759919245171,-160.0,0.00020852,2]
[389985192,1759919245190,-160.0,0.00020852,2]
[389985193,1759919245208,-160.0,0.00020852,2]
[389985194,1759919245227,-234.25206901,0.00020852,2]
[389985195,1759919245247,-32.2821162,0.00020852,2]
[389985196,1759919253092,-227.08843401,0.00020852,2]
[389985197,1759919268378,10000.01,0.00018,2]
[389985198,1759919268399,10000.01,0.00018,2]
[389985199,1759919268421,8315.27831884,0.00018,2]
[389985204,1759919294687,5014.0,0.00018,2]
[389985205,1759919312886,4986.01,0.0002,2]
[389985206,1759919312907,10000.01,0.0002,2]
[389985207,1759919315055,21404.30269521,0.00018,2]
[389985208,1759919320008,-1684.73168116,0.0002,2]
[389985209,1759919320155,-10000.01,0.0002,2]
[389985210,1759919321718,-10000.01,0.0002,2]
[389985211,1759919321868,-10000.01,0.0002,2]
[389985212,1759919321989,-10000.01,0.0002,2]
[389985213,1759919406855,151.0,0.000181,2]
[389985214,1759919407290,151.0,0.000183,2]
[389985215,1759919407809,151.0,0.000185,2]
[389985216,1759919408310,66.51340302,0.000187,2]
[389985306,1759919432321,-84.48659698,0.000187,2]
[389985308,1759919432330,-151.0,0.000189,2]
[389985310,1759919432339,-151.0,0.000191,2]
[389985312,1759919432349,-490.0,0.000198,2]
[389985314,1759919432358,-24.86982539,0.000198,2]
[389985316,1759919432370,-175.13017461,0.000198,2]
[389985318,1759919432379,-453.86465756,0.000199,4]
[389985320,1759919432388,-390.08249085,0.0002,2]
[389985325,1759919432427,-4332.87635569,0.0002,2]
[389985327,1759919432438,-450.51194209,0.0002,2]
[389985878,1759919438273,-641.86277348,0.0002,2]
[389985880,1759919438282,-1399.0564433,0.00020098,2]
[389985882,1759919438292,-453.86465756,0.00020099,4]
[389985884,1759919438302,-454.27264619,0.00020298,4]
[389985886,1759919438312,-1399.0564433,0.00020458,2]
[389985888,1759919438322,-179.0,0.00020463,2]
[389985890,1759919438331,-1200.0,0.00020534,2]
[389985892,1759919438341,-179.0,0.00020535,2]
[389985894,1759919438350,-179.0,0.00020585,2]
[389985895,1759919438359,-186.95501559,0.00020614,2]
[389985897,1759919438369,-179.0,0.00020639,2]
[389985899,1759919438378,-1399.0564433,0.00020655,2]
[389985901,1759919438388,-179.0,0.00020671,2]
[389985903,1759919438396,-434.25049912,0.00020713,2]
[389985904,1759919438406,-212.0,0.00020713,2]
[389985906,1759919438415,-300.0,0.00020713,2]
[389985907,1759919438425,-2293.66288648,0.00020714,2]
[389985910,1759919438436,-20282.62959795,0.00020714,2]
[389985912,1759919438447,-307.60049847,0.00020714,2]
[389985916,1759919438478,-338.26915242,0.00020714,2]
[389986045,1759919440385,-528.89051107,0.00020714,2]
[389986046,1759919440397,-2776.62570235,0.00020714,2]
[389986173,1759919444272,-6360.60125041,0.00020714,2]
[389986175,1759919444283,-179.0,0.00020714,2]
[389986177,1759919444291,-179.0,0.00020742,2]
[389986179,1759919444301,-218.17001836,0.00020766,2]
[389986181,1759919444310,-68.95841849,0.00020766,2]
[389986183,1759919444322,-244.43455417,0.00020766,2]
[389986185,1759919444331,-179.0,0.00020798,2]
[389986187,1759919444341,-284.06544633,0.00020852,2]
[389986189,1759919444351,-118.01840157,0.00020852,2]
[389986191,1759919444361,-160.0,0.00020853,2]
[389986194,1759919444371,-160.0,0.00020853,2]
[389986196,1759919444380,-283.12993999,0.000209,2]
[389986197,1759919444390,-177.67,0.00020942,2]
[389986199,1759919444399,-1399.0564433,0.00020952,2]
[389986201,1759919444408,-170.30521514,0.00020992,2]
[389986372,1759919621463,157.487857,0.0002352,30]
[389986373,1759919621832,157.487857,0.00023152,30]
[389986374,1759919622261,157.487857,0.00022785,30]
[389986375,1759919622667,157.487857,0.00022418,30]
[389986376,1759919863716,20899.17,0.00018,2]
[389986377,1759919875382,15000.0,0.00019,120]
[389986387,1759919920387,1500.0,0.00015,2]
[389986389,1759920138526,-197.80101764,0.00019151,2]
[389986390,1759920164357,157.487858,0.0002352,30]
[389986391,1759920164682,157.487858,0.00023152,30]
[389986392,1759920165004,157.487858,0.00022785,30]
[389986393,1759920425442,-151.0,0.000181,2]
[389986394,1759920425461,-151.0,0.0001835,2]
[389986395,1759920425479,-151.0,0.000186,2]
[389986396,1759920425500,-151.0,0.0001885,2]
[389986397,1759920425518,-151.0,0.000191,2]
[389986398,1759920425537,-160.921377,0.00019418,2]
[389986399,1759920425555,-223.7175168,0.0001985,2]
[389986400,1759920433134,-264.71161472,0.0001985,2]
[389986402,1759920454083,1122.33963192,0.00028767,120]
[389986403,1759920562099,-652.88092112,0.00019104,2]
[389986461,1759920632749,-431.01,0.00019004,2]
[389986464,1759920632761,-350.96055177,0.00019004,2]
[389986579,1759920638550,-320.36349846,0.00019004,2]
[389986581,1759920638560,-15.50650678,0.00019104,2]
[389986583,1759920638569,-268.89196813,0.0001975,2]
[389986585,1759920638579,-1301.02356487,0.00019788,2]
[389986587,1759920638589,-233.38878698,0.00019843,2]
[389986589,1759920638599,-238.45390151,0.00019883,2]
[389986591,1759920638608,-177.67,0.0001989,2]
[389986593,1759920638618,-419.0,0.00019899,2]
[389986595,1759920638629,-300.0,0.00019899,2]
[389986597,1759920638639,-6900.36666901,0.000199,2]
[389986601,1759920638669,-1301.12289125,0.000199,2]
[389986604,1759920638680,-4247.00643768,0.000199,2]
[389986606,1759920638691,-963.85330514,0.000199,2]
[389986608,1759920638703,-1003.90200101,0.000199,2]
[389987009,1759920643926,-535.9915868,0.000199,2]
[389987285,1759920646610,-694.50938659,0.000199,2]
[389987340,1759920661356,167.5906364,9.816e-05,2]
[389987343,1759920764900,157.487858,0.0002352,30]
[389987344,1759920765230,157.487858,0.00023152,30]
[389987345,1759920765627,157.487858,0.00022785,30]
[389987354,1759921361108,157.487858,0.0002352,30]
[389987355,1759921361530,157.487858,0.00023152,30]
[389987356,1759921362050,157.487858,0.00022785,30]
[389987358,1759921400815,1802.52012205,0.000196,14]
[389987359,1759921415875,1440.95526117,0.00018,2]
[389987360,1759921424167,1170.67850113,0.00018,2]
[389987361,1759921442496,-151.0,0.000181,2]
[389987362,1759921442524,-257.61689366,0.000181,2]
[389987363,1759921442552,-200.0,0.000181,2]
[389987364,1759921442580,-306.82742966,0.000181,2]
[389987365,1759921442608,-1301.02356487,0.00018213,2]
[389987366,1759921442634,-1301.02356487,0.00018438,2]
[389987367,1759921442661,-352.85154411,0.000187,2]
[389987368,1759921442687,-958.30044079,0.00018797,2]
[389987369,1759921442816,-342.72312408,0.00018797,2]
[389987370,1759921446044,-666.0,0.00019002,2]
[389987371,1759921446072,-151.0,0.000191,2]
[389987372,1759921446100,-300.0,0.00019102,2]
[389987373,1759921446127,-1200.0,0.00019103,2]
[389987374,1759921446154,-1975.283496,0.00019103,2]
[389987375,1759921446271,-1415.443008,0.00019104,2]
[389987377,1759921474651,780.573618,0.00013699,2]
[389987378,1759921479560,-151.0,0.00018812,2]
[389987379,1759921479586,-584.556992,0.00019104,2]
[389987380,1759921479611,-616.604,0.00019104,2]
[389987381,1759921479636,-1333.11139519,0.00019234,2]
[389987382,1759921479662,-398.87565856,0.000193,2]
[389987383,1759921479688,-1333.11139519,0.000197,2]
[389987384,1759921480074,-429.93412612,0.000199,2]
[389987385,1759921483642,-10000.01,0.000199,2]
[389987391,1759921644134,-475.69541087,0.00019309,2]
[389987392,1759921647137,-124.30458913,0.00019309,2]
[389987393,1759921647166,-2296.88108471,0.00019504,2]
[389987394,1759921647194,-1365.19922549,0.00019576,2]
[389987395,1759921647258,-2427.24020134,0.00019701,2]
[389987396,1759921649080,-1006.91025741,0.00019701,2]
[389987397,1759921649112,-1027.49681201,0.00019701,2]
[389987398,1759921651063,-538.35272924,0.00019701,2]
[389987399,1759921651097,-300.0,0.00019899,2]
[389987400,1759921651130,-1200.0,0.00019899,2]
[389987401,1759921651214,-5923.30454152,0.000199,2]
[389987402,1759921653241,-10000.01,0.000199,2]
[389987403,1759921659153,-1730.61184362,0.000199,2]
[389987404,1759921659179,-6538.78631276,0.000199,2]
[389987405,1759921659228,-444.89977301,0.000199,2]
[389987406,1759921659255,-1000.0,0.00019943,2]
[389987407,1759921659282,-232.575357,0.00020067,2]
[389987408,1759921659309,-200.0,0.000201,2]
[389987409,1759921659380,-6245.05973998,0.00020187,2]
[389987410,1759921663122,-411.14026002,0.00020187,2]
[389987411,1759921663149,-780.573618,0.00020187,2]
[389987412,1759921663176,-1365.19922549,0.00020216,2]
[389987413,1759921663203,-177.67,0.00020234,2]
[389987414,1759921663231,-1000.0,0.00020244,2]
[389987415,1759921663258,-1000.0,0.00020244,2]
[389987416,1759921663285,-151.0,0.00020244,2]
[389987417,1759921663375,-1000.0,0.00020244,2]
[389987418,1759921663404,-1000.0,0.00020244,2]
[389987419,1759921663431,-1000.0,0.00020244,2]
[389987420,1759921663458,-1000.0,0.00020244,2]
[389987421,1759921663488,-449.47657717,0.00020244,2]
[389987422,1759921663665,-228.84379298,0.00019899,2]
[389987423,1759921663680,-271.15620702,0.00019899,2]
[389987424,1759921663689,-500.0,0.00019899,2]
[389987425,1759921663698,-329.90063864,0.00019899,2]
[389987426,1759921667153,-281.17581191,0.00019899,2]
[389987427,1759921667181,-531.02164922,0.00019899,2]
[389987428,1759921667210,-500.0,0.00019899,2]
[389987429,1759921667237,-500.0,0.00019899,2]
[389987430,1759921667265,-394.14884945,0.00019899,2]
[389987431,1759921667293,-500.0,0.00019899,2]
[389987432,1759921667321,-500.0,0.00019899,2]
[389987433,1759921667349,-500.0,0.00019899,2]
[389987434,1759921667377,-237.45,0.00019899,2]
[389987435,1759921667405,-500.0,0.00019899,2]
[389987436,1759921667431,-253.28362617,0.00019899,2]
[389987437,1759921667536,-5000.0,0.00019986,2]
[389987438,1759921667866,-605.8501265,0.00020244,2]
[389987439,1759921667880,-0.01,0.00020244,2]
[389987440,1759921671211,-10000.01,0.00020244,2]
[389987441,1759921675235,-179.0084945,0.00019899,2]
[389987442,1759921675266,-1500.0,0.00020041,2]
[389987443,1759921675323,-6641.993011,0.00020244,2]
[389987444,1759921746146,-886.10972789,0.00019314,2]
[389987445,1759921746167,-4792.78447211,0.00019643,2]
[389987446,1759921762103,-189.15739696,0.00019643,2]
[389987447,1759921799481,2926.2,0.00018,2]
[389987453,1759921822940,-151.0,0.000181,2]
[389987454,1759921822970,-151.0,0.00018242,2]
[389987455,1759921823007,-151.0,0.00018385,2]
[389987456,1759921823042,-151.0,0.00018528,2]
[389987457,1759921823075,-151.0,0.00018671,2]
[389987458,1759921823112,-151.0,0.00018814,2]
[389987459,1759921823145,-151.0,0.00018957,2]
[389987460,1759921823179,-151.0,0.000191,2]
[389987461,1759921823216,-18.05813093,0.00019643,2]
[389987462,1759921823251,-2547.89373814,0.00019841,2]
[389987463,1759921823441,-2452.10626186,0.00019841,2]
[389987464,1759921826749,-300.0,0.00020027,2]
[389987465,1759921826777,-1200.0,0.00020027,2]
[389987466,1759921826911,-7000.01,0.00020028,2]
[389987491,1759921836986,153.0,7.9e-07,2]
[389987520,1759921837714,-12720.6034712,0.00020028,2]
[389987523,1759921837725,-2637.13508668,0.00020041,2]
[389987525,1759921837735,-453.86465756,0.00020143,4]
[389987527,1759921837745,-1051.0358791,0.00020371,2]
[389987529,1759921837754,-3400.6237395,0.00020371,2]
[389987551,1759921837977,-490.92388746,0.000205,2]
[389987552,1759921837992,-200.0,0.0002051,2]
[389987553,1759921838001,-3540.89447266,0.00020739,2]
[389987554,1759921838010,-325.92399859,0.00020779,2]
[389987555,1759921838020,-168.0,0.00020896,2]
[389987556,1759921838029,-332.43714402,0.000209,2]
[389987557,1759921838039,-234.25206901,0.0002092,2]
[389987558,1759921838048,-160.0,0.00020921,2]
[389987559,1759921838058,-160.0,0.00020921,2]
[389987560,1759921838067,-160.0,0.00020922,2]
[389987561,1759921838076,-160.0,0.00020922,2]
[389987562,1759921838085,-189.5044535,0.00020986,2]
[389987563,1759921838094,-402.0838479,0.0002099,2]
[389987564,1759921838103,-201.17484857,0.00020993,2]
[389987565,1759921838114,-965.98307314,0.00021,2]
[389987566,1759921838134,-200.0,0.00021,2]
[389987567,1759921838145,-849.28380219,0.00021,2]
[389987568,1759921838156,-179.0,0.00021055,2]
[389987569,1759921838168,-332.43714402,0.000211,2]
[389987570,1759921838178,-536.94800191,0.000211,2]
[389987571,1759921838189,-177.67,0.00021146,2]
[389987572,1759921838198,-193.05,0.00021155,2]
[389987573,1759921838209,-1000.0,0.00021156,2]
[389987574,1759921838218,-517.47399308,0.00021156,2]
[389987575,1759921838228,-253.11482287,0.00021156,2]
[389987576,1759921838237,-500.0,0.00021156,2]
[389987577,1759921838247,-500.0,0.00021156,2]
[389987578,1759921838256,-500.0,0.00021156,2]
[389987579,1759921838265,-500.0,0.00021156,2]
[389987580,1759921838275,-500.0,0.00021156,2]
[389987581,1759921838285,-500.0,0.00021156,2]
[389987582,1759921838294,-500.0,0.00021156,2]
[389987583,1759921838305,-18603.8837,0.00021156,2]
[389987584,1759921838314,-500.0,0.00021156,2]
[389987585,1759921838324,-500.0,0.00021156,2]
[389987586,1759921838333,-500.0,0.00021156,2]
[389987587,1759921838343,-258.8759698,0.00021156,2]
[389987588,1759921838353,-500.0,0.00021156,2]
[389987589,1759921838363,-500.0,0.00021156,2]
[389987590,1759921838372,-500.0,0.00021156,2]
[389987591,1759921838382,-500.0,0.00021156,2]
[389987592,1759921838392,-500.0,0.00021156,2]
[389987593,1759921838402,-500.0,0.00021156,2]
[389987594,1759921838411,-500.0,0.00021156,2]
[389987595,1759921838420,-500.0,0.00021156,2]
[389987596,1759921838430,-21021.01801997,0.00021169,2]
[389987597,1759921838439,-500.0,0.00021169,2]
[389987598,1759921838450,-481.95,0.00021259,10]
[389987599,1759921838459,-15192.5721365,0.00021269,2]
[389987600,1759921838469,-350.49699501,0.00021292,2]
[389987601,1759921838478,-332.43714402,0.000213,2]
[389987602,1759921838488,-261.551,0.00021339,2]
[389987603,1759921838497,-5392.24,0.00021359,3]
[389987604,1759921838507,-2696.12,0.00021359,3]
[389987605,1759921838517,-1348.06,0.00021359,3]
[389987606,1759921838526,-674.03,0.00021359,3]
[389987607,1759921838539,-337.02,0.00021359,3]
[389987608,1759921838549,-168.51,0.00021359,3]
[389987609,1759921838558,-505.53,0.00021359,3]
[389987610,1759921838569,-155.0,0.00021368,2]
[389987611,1759921838579,-307.19863943,0.00021368,2]
[389987612,1759921838588,-202.61199162,0.00021368,2]
[389987613,1759921838598,-500.0,0.00021369,2]
[389987614,1759921838609,-402.0838479,0.00021369,7]
[389987615,1759921838620,-500.01,0.00021369,2]
[389987616,1759921838630,-2381.93,0.00021369,2]
[389987617,1759921838640,-348.06178688,0.00021369,2]
[389987618,1759921838649,-500.0,0.00021369,2]
[389987619,1759921838659,-500.0,0.00021369,2]
[389987620,1759921838669,-500.33806792,0.00021369,2]
[389987621,1759921838679,-500.0,0.00021369,2]
[389987622,1759921838689,-500.0,0.00021369,2]
[389987623,1759921838699,-500.0,0.00021369,2]
[389987624,1759921838709,-286.74293775,0.00021369,2]
[389987625,1759921838719,-1164.52,0.00021369,2]
[389987626,1759921838729,-500.0,0.00021369,2]
[389987627,1759921838739,-500.0,0.00021369,2]
[389987628,1759921838749,-540.04,0.00021369,2]
[389987629,1759921838760,-605.03987459,0.00021369,2]